Cogmind - Beta 14 @@@ ROGUE MODE // 2024.08.10 @ 04:36:48 Player: Rosa Result: Destroyed by H-55 Commando with Assault Rifle Performance ------------- Evolutions (3) 1500 Regions Visited (5) 1000 Robots Destroyed (58) 290 Value Destroyed (1536) 1536 Prototype IDs (9) 180 Alien Tech Used (0) 0 Bonus (200) 200 TOTAL SCORE: 4706 Bonus ------- Entered Garrisons 200 Cogmind --------- Core Integrity 0/700 Matter 237/300 Energy 24/100 System Corruption 0% Temperature Cool (0) Movement Core (50) Location -7/Garrison Parts ------- > --- POWER (3) -------- (None) > --- PROPULSION (3) --- (None) > --- UTILITY (3) ------ (None) > --- WEAPON (4) ------- (None) > --- INVENTORY (5) ---- Surge Thruster Peak State ------------ > --- POWER ------------ Ion Engine Light Nuclear Core Micro Nuclear Core > --- PROPULSION ------- Light Treads Airjet Xenon Bombardment Thruster > --- UTILITY ---------- Large Storage Unit Advanced Weight Redist. System Advanced Visual Processing Unit > --- WEAPON ----------- Improved Medium Laser Improved Medium Laser Improved Assault Rifle Improved Assault Rifle > --- INVENTORY -------- Compact Wheel Kinecellerator Reaction Control System Recalibrator EM Pulse Gun Beam Rifle Precision Beam Rifle Advanced Beam Rifle Autogun Hammer Mining Claw Mining Claw [Rating: 37] Favorites ----------- Power Ion Engine Engine Ion Engine Power Core Light Nuclear Core Propulsion Light Treads Treads Light Treads Leg Aluminum Leg Wheel Wheel Hover Unit Airjet Flight Unit Xenon Bombardment Thruster Utility Large Storage Unit Device Structural Scanner Storage Large Storage Unit Processor Advanced Visual Processing Unit Weapon Improved Assault Rifle Energy Gun Improved Medium Laser Ballistic Gun Improved Assault Rifle Ballistic Cannon Light Cannon Impact Weapon Hammer Slashing Weapon Mining Claw Build | -11 -10 -9 -8 -7 -7 ------- Run | Yrd Mat Mat Mat Fac Gar Slots Evolved 6 | . . 2 2 2 . Power 2 | . . 1 . 1 . Propulsion 1 | . . . . 1 . Utility 1 | . . . 1 . . Weapon 2 | . . 1 1 . . Parts Attached 74 | 7 5 25 13 5 19 Power 12 | 1 . 5 3 2 1 Engine 7 | 1 . 5 1 . . Core 5 | . . . 2 2 1 Reactor . | . . . . . . Propulsion 21 | 2 4 7 1 2 5 Treads 11 | . 3 7 1 . . Leg 4 | . . . . . 4 Wheel 3 | 2 1 . . . . Hover 1 | . . . . 1 . Flight 2 | . . . . 1 1 Utility 10 | 1 . 3 2 . 4 Device 7 | . . 2 1 . 4 Storage 2 | 1 . 1 . . . Processor 1 | . . . 1 . . Hackware . | . . . . . . Protection . | . . . . . . Artifact . | . . . . . . Weapon 31 | 3 1 10 7 1 9 Energy Gun 12 | 1 . 3 2 1 5 Energy Cannon . | . . . . . . Ballistic Gun 15 | 2 1 6 5 . 1 Ballistic Cannon 1 | . . 1 . . . Launcher . | . . . . . . Special Weapon . | . . . . . . Impact Weapon 1 | . . . . . 1 Slashing Weapon 2 | . . . . . 2 Piercing Weapon . | . . . . . . Special Melee Weapon . | . . . . . . Unidentified Prototypes 5 | . . 4 1 . . Parts Lost 23 | . 1 2 2 . 18 Power 4 | . . 1 . . 3 Propulsion 5 | . 1 1 1 . 2 Utility 5 | . . . . . 5 Weapon 9 | . . . 1 . 8 Highest Loss Streak 11 | . 1 1 1 . 11 To Critical Strikes 1 | . . . 1 . . Average Slot Usage (%) 87 | . 79 96 88 83 68 Engine 12 | . 14 20 11 7 1 Core 4 | . . . 4 11 8 Treads 11 | . 7 21 10 3 . Wheel 1 | . 15 . . . . Hover 1 | . . . . 6 2 Device 7 | . . 10 9 7 5 Storage 9 | . 14 11 9 7 5 Processor 3 | . . . 7 7 5 Energy Gun 5 | . . 1 . 15 18 Ballistic Gun 24 | . 28 27 34 15 3 Ballistic Cannon 1 | . . 3 . . . Peak Build Rating 37 | 6 6 19 26 37 33 Average Rating 20 | 4 5 14 23 31 24 On Entrance 14 | . 6 6 16 26 34 Naked Turns . | . . . . . . Heaviest Build 48 | 13 13 43 43 48 48 Greatest Support 40 | 26 40 40 40 29 30 Greatest Overweight (x) 10 | 1 1 1 2 2 10 Average Overweight (x) . | . . . 1 1 1 Largest Inventory Capacity 15 | 8 8 15 15 15 15 Average Capacity 13 | 7 8 12 15 15 13 Most Carried 15 | 2 8 14 12 15 14 Average Carried 9 | 1 5 8 10 13 9 Final Capacity 15 | 8 8 15 15 15 5 Final Carried 15 | 2 8 10 10 15 1 Class Distribution -------------------- 75% | Skirmisher 13% | Mutant 6% | Scavenger-Skirmisher 3% | Gunner Dominant Class ---------------- Mutant | -10/Materials Skirmisher | -9/Materials Skirmisher | -8/Materials Skirmisher | -7/Factory Scavenger-Skirmisher | -7/Garrison Resources | -11 -10 -9 -8 -7 -7 ----------- Run | Yrd Mat Mat Mat Fac Gar Matter Collected 1952 | 211 180 885 322 157 197 Remotely . | . . . . . . Salvage Created 2361 | . 229 1187 433 282 230 Parts 106 | . 12 55 18 10 11 Haulers Intercepted 5 | . 1 3 . 1 . Recyclers Shooed 8 | . . 4 2 2 . Parts Field Recycled . | . . . . . . Retrieved Matter . | . . . . . . Parts Self-Destructed . | . . . . . . Prevented . | . . . . . . Kills | -11 -10 -9 -8 -7 -7 ------- Run | Yrd Mat Mat Mat Fac Gar Combat Hostiles Destroyed 39 | . 4 19 5 3 8 Melee 2 | . . . . . 2 Guns 33 | . 4 16 5 3 5 Cannons 3 | . . 3 . . . AOE 1 | . . . . . 1 Classes Destroyed 13 | . 2 6 2 1 2 Worker 4 | . . 4 . . . Builder 1 | . . . 1 . . Tunneler 1 | . . . . 1 . Hauler 5 | . 1 3 . 1 . Recycler 5 | . . 2 2 1 . Operator 1 | . . 1 . . . Watcher 2 | . . 1 1 . . Swarmer 3 | . . . . . 3 Cutter 2 | . . . . . 2 Grunt 29 | . 4 17 2 3 3 Brawler 1 | . . . 1 . . Duelist 1 | . . 1 . . . Sentry 3 | . . 1 2 . . Best Kill Streak 5 | . 4 4 5 3 4 Combat Bots Only 4 | . 4 3 4 3 4 Max Kills in Single Turn 2 | . 1 2 2 1 1 Gunslinging . | . . . . . . Exploded 1 | . . . . . 1 Melee 1 | . . . . . 1 Uniques/NPCs Destroyed . | . . . . . . Combat | -11 -10 -9 -8 -7 -7 -------- Run | Yrd Mat Mat Mat Fac Gar Hostile Shots Fired 286 | . 29 79 16 2 160 Missed 77 | . 8 23 2 . 44 Damage Taken 3254 | . 227 709 207 103 2008 Core 958 | . 69 156 29 . 704 Absorbed by Shields 8 | . . . . . 8 Core Remaining (%) 81 | 100 72 61 94 . . Volleys Fired 151 | . 20 77 21 12 21 Largest 4 | . 2 3 4 4 4 Hottest 261 | . 40 135 92 158 261 Shots Fired 453 | . 40 231 84 48 50 Gun 416 | . 40 194 84 48 50 Cannon 37 | . . 37 . . . Launcher . | . . . . . . Special . | . . . . . . Kinetic 378 | . 40 219 84 24 11 Thermal 68 | . . 12 . 24 32 Explosive . | . . . . . . Electromagnetic 7 | . . . . . 7 Robot Hit Streak 15 | . 6 15 8 11 5 Robot Miss Streak 5 | . 4 5 5 2 4 Penetration Max . | . . . . . . Secondary Targets 7 | . . 1 2 . 4 Max Gunslinging Chain 1 | . . 1 1 . 1 Shots Hit Robots 269 | . 26 133 51 30 29 Core Hits 103 | . 9 48 17 11 18 Critical Kills 1 | . . 1 . . . Critical Parts Destroyed . | . . . . . . Critical Strikes 5 | . . 2 . 3 . Burn 3 | . . . . 3 . Destroy 1 | . . 1 . . . Blast 1 | . . 1 . . . Melee Attacks 8 | . . . . . 8 Impact . | . . . . . . Slashing 8 | . . . . . 8 Piercing . | . . . . . . Sneak Attacks . | . . . . . . Combat Hostiles . | . . . . . . Follow-up Attacks 1 | . . . . . 1 Damage Inflicted 4276 | . 293 1977 782 475 749 Guns 3738 | . 293 1629 782 475 559 Cannons 348 | . . 348 . . . Explosions 116 | . . . . . 116 Melee 72 | . . . . . 72 Ramming 2 | . . . . . 2 Kinetic 3216 | . 293 1861 782 225 55 Thermal 944 | . . 116 . 250 578 Explosive . | . . . . . . Electromagnetic 42 | . . . . . 42 Impact . | . . . . . . Slashing 72 | . . . . . 72 Piercing . | . . . . . . Highest Corruption 1 | . . 1 . . . Average Corruption 1 | . . 1 . . . Corruption Purged . | . . . . . . Corruption Blocked . | . . . . . . Overload Shots . | . . . . . . Overflow Damage 4 | . . 4 . . . Projectiles 4 | . . 4 . . . Explosions . | . . . . . . Melee . | . . . . . . Knockbacks 5 | . . 5 . . . Impact . | . . . . . . Kinetic 5 | . . 5 . . . Secondary . | . . . . . . Self-Inflicted Damage . | . . . . . . Shots . | . . . . . . Rammed . | . . . . . . Targets Rammed 1 | . . . . . 1 Kicked 1 | . . . . . 1 Crushed . | . . . . . . Highest Temperature 597 | . 30 483 255 388 597 Average Temperature 140 | . 14 111 71 125 340 Received Heat Transfer 621 | . 126 306 117 18 54 Effects 35 | . . 5 . 2 28 Shutdowns 12 | . . 2 . 1 9 Energy Bleed 4 | . . 2 . . 2 Interference 6 | . . . . . 6 Matter Decay 2 | . . . . . 2 Short Circuit 5 | . . 1 . 1 3 Damage (minor) 5 | . . . . . 5 Damage (core) 1 | . . . . . 1 Siege Activations . | . . . . . . Robots Corrupted . | . . . . . . Combat Hostiles . | . . . . . . Parts Fried 1 | . . . . . 1 Impact Corruptions . | . . . . . . Robots Melted . | . . . . . . Combat Hostiles . | . . . . . . Parts Melted 4 | . . 1 . 2 1 Heat Transferred 2116 | . . 259 . 777 1080 Parts Sabotaged . | . . . . . . Parts Stolen . | . . . . . . Parts Stripped . | . . . . . . Power Chain Reactions 1 | . . . . . 1 Alert | -11 -10 -9 -8 -7 -7 ------- Run | Yrd Mat Mat Mat Fac Gar Peak Influence 389 | . 153 389 307 84 162 Initial 162 | . . 64 162 56 58 Average 146 | . 114 215 166 53 130 Maximum Alert Level 1 | . . 1 1 . . Low Security (%) 80 | 100 100 48 91 100 100 Level 1 19 | . . 51 8 . . Level 2 . | . . . . . . Level 3 . | . . . . . . Level 4 . | . . . . . . Level 5 . | . . . . . . High Security . | . . . . . . Max Security . | . . . . . . Squads Dispatched 8 | . 1 5 1 1 . Investigation 5 | . . 4 . 1 . Extermination . | . . . . . . Reinforcement 3 | . 1 1 1 . . Assault . | . . . . . . Garrison . | . . . . . . Intercept . | . . . . . . Searches Triggered . | . . . . . . Construction Impeded 1 | . . . 1 . . Haulers Reinforced . | . . . . . . Active Scanning Responses . | . . . . . . Cargo Convoy Interrupts . | . . . . . . Stealth | -11 -10 -9 -8 -7 -7 --------- Run | Yrd Mat Mat Mat Fac Gar Distress Signals 2 | . 1 1 . . . Communications Jammed . | . . . . . . Distress Signals . | . . . . . . Times Spotted 51 | . 5 26 7 2 11 Peak Tracking Total 5 | . 4 5 3 2 5 Tactical Retreats 4 | . . 4 . . . Traps | -11 -10 -9 -8 -7 -7 ------- Run | Yrd Mat Mat Mat Fac Gar Traps Triggered 3 | . . . 1 1 1 Indirectly . | . . . . . . Trap Hack Attempts . | . . . . . . Triggered . | . . . . . . Disarmed . | . . . . . . Reprogrammed . | . . . . . . Reused . | . . . . . . Traps Extracted . | . . . . . . Installed . | . . . . . . Triggered . | . . . . . . Machines | -11 -10 -9 -8 -7 -7 ---------- Run | Yrd Mat Mat Mat Fac Gar Machines Disabled . | . . . . . . Max in Single Turn . | . . . . . . Garrison Relay 1 | . . . . . 1 Machines Repaired . | . . . . . . Machines Dismantled . | . . . . . . Machines Sabotaged . | . . . . . . Overloaded Fab Kills . | . . . . . . Hacking | -11 -10 -9 -8 -7 -7 --------- Run | Yrd Mat Mat Mat Fac Gar Machines Accessed 14 | . 3 8 . 3 . Terminals 8 | . 2 6 . . . Fabricators . | . . . . . . Repair Stations 1 | . . 1 . . . Recycling Units 4 | . 1 1 . 2 . Scanalyzers . | . . . . . . Garrison Access 1 | . . . . 1 . Total Hacks 39 | . 9 25 . 5 . Successful 24 | . 6 16 . 2 . Failed 15 | . 3 9 . 3 . Catastrophic 1 | . . 1 . . . Database Lockouts . | . . . . . . Manual . | . . . . . . Terminals 25 | . 6 19 . . . Fabricators . | . . . . . . Repair Stations 3 | . . 3 . . . Recycling Units 10 | . 3 3 . 4 . Scanalyzers . | . . . . . . Garrison Access 1 | . . . . 1 . Terminal Hacks 17 | . 4 13 . . . Record 10 | . 4 6 . . . Robot Analysis 1 | . . 1 . . . Prototype ID Bank 3 | . . 3 . . . Terminal Index 1 | . . 1 . . . Scanalyzer Index 1 | . . 1 . . . Dispatch Records 1 | . . 1 . . . Fabricator Hacks . | . . . . . . Repair Station Hacks . | . . . . . . Recycling Unit Hacks 6 | . 2 3 . 1 . Recycle Component 1 | . . . . 1 . Process 1 | . . 1 . . . Report Inventory 2 | . 1 1 . . . Retrieve Matter 1 | . . 1 . . . Retrieve Components 1 | . 1 . . . . Scanalyzer . | . . . . . . Garrison Access Hacks 1 | . . . . 1 . Unlock Access 1 | . . . . 1 . Unauthorized Hacks . | . . . . . . Terminals . | . . . . . . Fabricators . | . . . . . . Repair Stations . | . . . . . . Recycling Units . | . . . . . . Scanalyzers . | . . . . . . Garrison Access . | . . . . . . Data Cores Recovered . | . . . . . . Used . | . . . . . . Hacking Detections 10 | . 2 6 . 2 . Full Trace Events 6 | . . 5 . 1 . Feedback Events 1 | . . 1 . . . Corruption 1 | . . 1 . . . Feedback Blocked . | . . . . . . Robot Schematics Acquired . | . . . . . . Robots Built . | . . . . . . Authchips . | . . . . . . Time . | . . . . . . Total Robot Build Rating . | . . . . . . Part Schematics Acquired . | . . . . . . Parts Built . | . . . . . . Authchips . | . . . . . . Time . | . . . . . . Total Part Build Rating . | . . . . . . Parts Repaired . | . . . . . . Time . | . . . . . . Parts Recycled 1 | . . . . 1 . Recycled Matter 186 | . . 186 . . . Retrieved Matter 279 | . . 279 . . . Retrieved Components 1 | . 1 . . . . Parts Scanalyzed . | . . . . . . Part Schematics Acquired . | . . . . . . Parts Damaged . | . . . . . . Bothacking | -11 -10 -9 -8 -7 -7 ------------ Run | Yrd Mat Mat Mat Fac Gar Used RIF Installer . | . . . . . . Robots Hacked . | . . . . . . Non-combat . | . . . . . . Combat . | . . . . . . Robot Hacks Applied . | . . . . . . Relay Couplers Released 4 | . . . . . 4 Machine Destruction 4 | . . . . . 4 Fabnet Peak Effective % . | . . . . . . Robots Rewired . | . . . . . . Allies Hacked . | . . . . . . Hacks Repelled . | . . . . . . Allies | -11 -10 -9 -8 -7 -7 -------- Run | Yrd Mat Mat Mat Fac Gar Total Allies . | . . . . . . Largest Group . | . . . . . . Highest-Rated Group . | . . . . . . Highest-Rated Ally . | . . . . . . Total Orders . | . . . . . . Ally Attacks . | . . . . . . Total Damage . | . . . . . . Kills . | . . . . . . Allies Corrupted . | . . . . . . Allies Melted . | . . . . . . Intel | -11 -10 -9 -8 -7 -7 ------- Run | Yrd Mat Mat Mat Fac Gar Robot Analysis Total 1 | . . 1 . . . Derelict Logs Recovered . | . . . . . . Drone Launches . | . . . . . . Drone Recoveries . | . . . . . . Exploration | -11 -10 -9 -8 -7 -7 ------------- Run | Yrd Mat Mat Mat Fac Gar Turns Passed 2681 | 58 270 939 578 584 252 Spaces Moved 1093 | 52 178 342 186 274 61 Core 12 | 6 . . 1 . 5 Treads 597 | . 47 342 185 23 . Legs 44 | . . . . . 44 Wheels 177 | 46 131 . . . . Hover 263 | . . . . 251 12 Flight . | . . . . . . Fastest Speed 50 | 50 80 160 150 180 50 Average Speed 181 | 88 107 186 249 192 189 Slowest Speed 550 | 100 160 240 320 240 550 Overloaded Moves . | . . . . . . Propulsion Burnouts . | . . . . . . Robots Hopped . | . . . . . . Cave-ins Triggered . | . . . . . . Exploration Rate (%) 16 | 4 27 30 14 9 12 Regions Visited 5 Branch Regions . Pre-discovered Areas . | . . . . . . Known Exits Taken 1 | . . . . 1 . Unknown Exits Taken 4 | 1 1 1 1 . . Scrap Searched . | . . . . . . Spaces Dug . | . . . . . . Terrain Destroyed 4 | . . . . . 4 Melee . | . . . . . . Projectile . | . . . . . . AOE 4 | . . . . . 4 Terrain Rammed . | . . . . . . Walls Destroyed . | . . . . . . Machines Disabled . | . . . . . . Actions | -11 -10 -9 -8 -7 -7 --------- Run | Yrd Mat Mat Mat Fac Gar Total 1449 | 60 221 474 248 304 142 Wait 43 | . 9 3 12 1 18 Move 1088 | 51 177 341 185 273 61 Hop . | . . . . . . Pick Up 34 | 2 6 11 8 6 1 Fast Attach 29 | 6 3 6 4 4 6 Attach 20 | . 1 3 4 . 12 Detach 10 | . 1 . 2 3 4 Swap 27 | 1 1 17 6 1 1 Drop 34 | . 3 16 6 4 5 Fire 151 | . 20 77 21 12 21 Melee 7 | . . . . . 7 Ram . | . . . . . . Kick 1 | . . . . . 1 Crush . | . . . . . . Escape Stasis 5 | . . . . . 5 Rewire . | . . . . . . Trap . | . . . . . . Miscellaneous . | . . . . . . Route ------- -11/Scrapyard -10/Materials -9/Materials -8/Materials -7/Factory -7/Garrison History --------- Turn | Location | Event 27 | -11/Scrapyard | Discovered new exit (range 13) 59 | -11/Scrapyard | Entered Materials 286 | -10/Materials | Discovered new exit (range 10) 314 | -10/Materials | Build established: Mutant 329 | -10/Materials | Entered another Materials area 329 | -9/Materials | Evolved 2 slots: Power x1, Weapon x1 858 | -9/Materials | Build established: Skirmisher 1263 | -9/Materials | Discovered new exit (range 3) 1268 | -9/Materials | Entered another Materials area 1268 | -8/Materials | Evolved 2 slots: Utility x1, Weapon x1 1799 | -8/Materials | Discovered new exit (range 16) 1846 | -8/Materials | Entered Factory 1846 | -7/Factory | Evolved 2 slots: Power x1, Propulsion x1 2416 | -7/Factory | Identified exit to Garrison 2430 | -7/Factory | Entered Garrison 2446 | -7/Garrison | Triggered checkpoint 2534 | -7/Garrison | Lost 7 parts (2p1u4w) 2628 | -7/Garrison | Triggered checkpoint 2628 | -7/Garrison | Garrison Relay disabled 2650 | -7/Garrison | Core integrity fell below 50% 2671 | -7/Garrison | Core integrity fell below 20% 2682 | -7/Garrison | Destroyed by H-55 Commando with Assault Rifle Last Messages --------------- 02657_ Penetrated by Slug. 02658_ Slug penetrates Wall. 02658_ Xenon Bombardment Thruster destroyed. 02660_ C-17 Slicer Surge Thruster ripped off. 02660_ Penetrated by Slug. 02660_ C-17 Slicer destroyed. 02661_ Slug penetrates Reinforced Barrier. 02664_ Hardlight Generator severed. 02667_ Penetrated by Slug. 02669_ Slug penetrates Reinforced Barrier. 02670_ Reaction Control System destroyed. 02672_ Penetrated by Slug. 02673_ Slug penetrates Reinforced Barrier. 02674_ C-17 Slicer destroyed. 02675_ Penetrated by Slug. 02675_ Mining Claw destroyed. 02676_ Penetrated by Slug. 02676_ Kinecellerator destroyed. 02679_ Penetrated by Slug. 02682_ Mining Claw destroyed. Map ----- +----------------------------------------------------+ | | | | | | | | | | | | | ?????????????????????????????????????????????????? | | ?????????????????????????????????????????????????? | | ?????????????????????????????????????????????????? | | ?????????????????????????????????????????????????? | | ?????????????????????????????????????????????????? | | ?????????????????????????????????????????????????? | | ?????????????????????????????????????????????????? | | ?????????????????????????????????????????????????? | | ?????????????????????????????????????????????????? | | ?????????????????????????????????????????????????? | | ??????????????????????????????##?????????????????? | | ??????????????????????????????!#?????????????????? | | ?????????????????????????????? !?????????????????? | | ?????????????????????????????? !?????????????????? | | ?????????????????????????????? #?????????????????? | | ????????????????????????????## #?????????????????? | | ????????????????????????????# #?????????????????? | | ????????????????????????????# #?????????????????? | | ?????????????????????####+### #?????????????????? | | ?????????????????????#h *@h## #?????????????????? | | ????????????????????##=][%%## #?????????????????? | | ????????????????????# %==!== #?????????????????? | | ????????????????????# !/!*[ #?????????????????? | | ????????????????????###!![### #?????????????????? | | ?????????????????????#"!! ## #?????????????????? | | ?????????????????????######## #?????????????????? | | ????????????????????????????# #?????????????????? | | ????????????????????????????# #?????????????????? | | ????????????????????????????# #?????????????????? | | ????????????????????????????# #?????????????????? | | ??????????????????????????### #?????????????????? | | ??????????????????#########"" ################### | | ??????????????????# ^ | | ??????????????????# [= | | ??????????????????# = | | ??????????????????# ####"#"""######## =######## | | ??????????????????# ???# ### #??????# #??????? | | ??????????????????#?????# ??# #??????#####??????? | | ????????????????????????# ??# #?????????????????? | | ???????????????????????? ???# #?????????????????? | | ????????????????????????#???# ?????????????????? | | ????????????????????????????# #?????????????????? | | ????????????????????????????# #?????????????????? | | ????????????????????????????# #?????????????????? | +----------------------------------------------------+ Best States ------------- Heat Dissipation 48 Energy Generation 29 Energy Capacity 430 Matter Stores 300 Matter Capacity 300 Sight Range 20 Terrain Scan Density 10 Additional Mass Support 9 Evasion (%) 44 Recoil Reduction 2 Kinecelleration 30 Item Schematics ----------------- None Robot Schematics ------------------ None Fabricated ------------ Nothing Alien Tech Used ----------------- None Achievements -------------- Librarian Challenges ------------ None Game ------ Seed PersonalGunScreen Manual? 0 Play Time 00:29:14 Cumulative 11.3 hours Start 2024.08.10 @ 04:10:47 End 2024.08.10 @ 04:36:48 Sessions 1 Manual Loads 0 Difficulty Rogue Special Mode None Game No. 45 Rogue 43 Adventurer 0 Explorer 2 Win Type - Total 0 Types 0/0/0/0/0/0/0/0/0 Lore% 3 Gallery% 20 Achievement% 12 Wizard Run 0 Options --------- Layout 1 ASCII 0 Keyboard 0 Movement Numpad Keybinds 0 Fullscreen 1 Font 32/SmallcapsGlow Map View 50x35 Zoom Use 0% Tactical HUD 1 Map Filters NONE Filters NONE Steam 1 RUN: 6ba7472d-da85-419d-a928-864bf0349a12